[Event "*** SCC Grand Prix: Titled Tuesday Blitz"]
[Site "Chess.com"]
[Date "2020.07.07"]
[Round "2"]
[White "MashaFromRussia"]
[Black "CzechmVIII"]
[Result "1-0"]
[WhiteElo "2434"]
[BlackElo "2195"]
[TimeControl "180+1"]
[EndTime "10:17:12 PDT"]
[Termination "MashaFromRussia won on time"]

1. d4 {[%clk 0:03:00.9]} 1... Nf6 {[%clk 0:03:00]} 2. c4 {[%clk 0:03:00.9]} 2...
c5 {[%clk 0:03:00.2]} 3. d5 {[%clk 0:03:00.4]} 3... e6 {[%clk 0:03:00.6]} 4. Nc3
{[%clk 0:03:00.2]} 4... exd5 {[%clk 0:03:01]} 5. cxd5 {[%clk 0:03:01.1]} 5... d6
{[%clk 0:03:01.7]} 6. Nf3 {[%clk 0:03:01.1]} 6... g6 {[%clk 0:03:01.9]} 7. e4
{[%clk 0:03:01.4]} 7... a6 {[%clk 0:03:00.3]} 8. a4 {[%clk 0:03:01]} 8... Bg4
{[%clk 0:03:00.1]} 9. Be2 {[%clk 0:03:01]} 9... Bxf3 {[%clk 0:03:00.3]} 10. Bxf3
{[%clk 0:03:01]} 10... Bg7 {[%clk 0:03:01]} 11. O-O {[%clk 0:03:01.2]} 11... O-O
{[%clk 0:03:00.2]} 12. Bf4 {[%clk 0:03:01.5]} 12... Qe7 {[%clk 0:02:53.1]} 13.
Re1 {[%clk 0:03:01.3]} 13... Nbd7 {[%clk 0:02:52.7]} 14. h3 {[%clk 0:03:00.6]}
14... Rab8 {[%clk 0:02:47.3]} 15. a5 {[%clk 0:02:54]} 15... c4 {[%clk
0:02:11.1]} 16. Ra4 {[%clk 0:02:40.1]} 16... Rfc8 {[%clk 0:01:53.3]} 17. Be2
{[%clk 0:02:32.7]} 17... Ne5 {[%clk 0:01:29.7]} 18. Bxe5 {[%clk 0:02:22.6]}
18... Qxe5 {[%clk 0:01:29.4]} 19. Rxc4 {[%clk 0:02:22.8]} 19... Rxc4 {[%clk
0:00:59.7]} 20. Bxc4 {[%clk 0:02:23.7]} 20... Rc8 {[%clk 0:01:00.1]} 21. Qd3
{[%clk 0:02:19.2]} 21... Nd7 {[%clk 0:00:55.7]} 22. Ba2 {[%clk 0:02:14]} 22...
Nc5 {[%clk 0:00:54.9]} 23. Qc4 {[%clk 0:02:13.2]} 23... Qd4 {[%clk 0:00:47.5]}
24. Qe2 {[%clk 0:01:54.7]} 24... Qb4 {[%clk 0:00:39.3]} 25. f4 {[%clk
0:01:43.3]} 25... Bd4+ {[%clk 0:00:31.4]} 26. Kh1 {[%clk 0:01:42.5]} 26... Qxa5
{[%clk 0:00:31.6]} 27. e5 {[%clk 0:01:41.6]} 27... Re8 {[%clk 0:00:25.7]} 28.
Qd2 {[%clk 0:01:41.4]} 28... Bxc3 {[%clk 0:00:20.1]} 29. bxc3 {[%clk 0:01:40.1]}
29... Nd7 {[%clk 0:00:16.6]} 30. e6 {[%clk 0:01:38.4]} 30... Nc5 {[%clk
0:00:15.1]} 31. f5 {[%clk 0:01:33]} 31... Qa4 {[%clk 0:00:09.4]} 32. exf7+
{[%clk 0:01:29.4]} 32... Kxf7 {[%clk 0:00:08.9]} 33. fxg6+ {[%clk 0:01:29.7]}
33... hxg6 {[%clk 0:00:08.3]} 34. Qf2+ {[%clk 0:01:29.9]} 1-0

[Event "*** SCC Grand Prix: Titled Tuesday Blitz"]
[Site "Chess.com"]
[Date "2020.07.07"]
[Round "2"]
[White "vinniethepooh"]
[Black "BilodeauA"]
[Result "0-1"]
[WhiteElo "2544"]
[BlackElo "2837"]
[TimeControl "180+1"]
[EndTime "10:17:14 PDT"]
[Termination "BilodeauA won by resignation"]

1. d4 {[%clk 0:03:00.9]} 1... d5 {[%clk 0:03:00]} 2. c4 {[%clk 0:03:00.8]} 2...
dxc4 {[%clk 0:03:00.9]} 3. Nf3 {[%clk 0:03:00.5]} 3... a6 {[%clk 0:03:00.8]} 4.
e3 {[%clk 0:03:00.1]} 4... Bg4 {[%clk 0:03:01]} 5. Bxc4 {[%clk 0:02:59]} 5... e6
{[%clk 0:03:01.6]} 6. h3 {[%clk 0:02:57.1]} 6... Bh5 {[%clk 0:03:01.7]} 7. Nc3
{[%clk 0:02:56.8]} 7... Nc6 {[%clk 0:03:02.1]} 8. O-O {[%clk 0:02:51.6]} 8...
Nf6 {[%clk 0:03:01.7]} 9. Re1 {[%clk 0:02:47.8]} 9... Bd6 {[%clk 0:03:02.2]} 10.
e4 {[%clk 0:02:36.6]} 10... Bxf3 {[%clk 0:02:59.8]} 11. gxf3 {[%clk 0:02:37.5]}
11... e5 {[%clk 0:02:32]} 12. d5 {[%clk 0:02:28.6]} 12... Ne7 {[%clk 0:02:29.8]}
13. f4 {[%clk 0:02:25.6]} 13... Ng6 {[%clk 0:02:22.7]} 14. f5 {[%clk 0:02:22.9]}
14... Nf8 {[%clk 0:02:23.1]} 15. f4 {[%clk 0:02:21.2]} 15... N8d7 {[%clk
0:02:23.4]} 16. Qf3 {[%clk 0:02:13.6]} 16... Qe7 {[%clk 0:02:23.5]} 17. Bb3
{[%clk 0:02:06.5]} 17... O-O-O {[%clk 0:02:22.7]} 18. Be3 {[%clk 0:02:06.2]}
18... exf4 {[%clk 0:02:22.5]} 19. Bxf4 {[%clk 0:02:06.6]} 19... Bxf4 {[%clk
0:02:22.4]} 20. Qxf4 {[%clk 0:02:07.5]} 20... Qe5 {[%clk 0:02:17]} 21. Qxe5
{[%clk 0:02:05.7]} 21... Nxe5 {[%clk 0:02:17.9]} 22. Kg2 {[%clk 0:02:06.6]}
22... Ne8 {[%clk 0:02:07.4]} 23. Rad1 {[%clk 0:01:57.8]} 23... Nd6 {[%clk
0:02:07.1]} 24. Kg3 {[%clk 0:01:58.4]} 24... g6 {[%clk 0:02:07.4]} 25. Kf4
{[%clk 0:01:58.7]} 25... f6 {[%clk 0:02:05.8]} 26. Ne2 {[%clk 0:01:58.7]} 26...
gxf5 {[%clk 0:01:39.4]} 27. exf5 {[%clk 0:01:57.5]} 27... Rhg8 {[%clk
0:01:39.3]} 28. Rg1 {[%clk 0:01:46.4]} 28... h6 {[%clk 0:01:34.4]} 29. Nd4
{[%clk 0:01:44.4]} 29... Rg5 {[%clk 0:01:34.2]} 30. h4 {[%clk 0:01:41.7]} 30...
Rh5 {[%clk 0:01:25]} 31. Rh1 {[%clk 0:01:34.8]} 31... Rg8 {[%clk 0:01:24.7]} 32.
Bc2 {[%clk 0:00:55.3]} 32... Ndc4 {[%clk 0:01:20.1]} 33. Rdg1 {[%clk 0:00:21.6]}
33... Rxg1 {[%clk 0:01:19.2]} 34. Rxg1 {[%clk 0:00:17.1]} 34... Rxh4+ {[%clk
0:01:19.4]} 0-1

[Event "*** SCC Grand Prix: Titled Tuesday Blitz"]
[Site "Chess.com"]
[Date "2020.07.07"]
[Round "2"]
[White "JiiHart"]
[Black "MrChampion_Coach"]
[Result "0-1"]
[WhiteElo "2138"]
[BlackElo "2415"]
[TimeControl "180+1"]
[EndTime "10:17:14 PDT"]
[Termination "MrChampion_Coach won by resignation"]

1. e4 {[%clk 0:03:00.9]} 1... c5 {[%clk 0:02:59.5]} 2. Nf3 {[%clk 0:03:00]} 2...
d6 {[%clk 0:02:59.9]} 3. d4 {[%clk 0:03:00.2]} 3... cxd4 {[%clk 0:03:00.8]} 4.
Nxd4 {[%clk 0:03:00.5]} 4... Nf6 {[%clk 0:03:01.3]} 5. Nc3 {[%clk 0:03:00.7]}
5... a6 {[%clk 0:03:01.7]} 6. Bg5 {[%clk 0:03:00.7]} 6... e6 {[%clk 0:03:01.4]}
7. f4 {[%clk 0:03:00.6]} 7... h6 {[%clk 0:03:01.9]} 8. Bh4 {[%clk 0:02:59.2]}
8... Qb6 {[%clk 0:03:02.2]} 9. Nb3 {[%clk 0:02:52]} 9... Nc6 {[%clk 0:02:55.4]}
10. Bf2 {[%clk 0:02:48.5]} 10... Qc7 {[%clk 0:02:52.2]} 11. Qf3 {[%clk
0:02:41.2]} 11... b5 {[%clk 0:02:46.8]} 12. O-O-O {[%clk 0:02:33.1]} 12... Bb7
{[%clk 0:02:46.1]} 13. Bd3 {[%clk 0:02:27.5]} 13... Be7 {[%clk 0:02:35.8]} 14.
Rhe1 {[%clk 0:02:24.8]} 14... Rc8 {[%clk 0:02:25.3]} 15. Kb1 {[%clk 0:02:15.5]}
15... Nb4 {[%clk 0:02:14.3]} 16. g4 {[%clk 0:01:59]} 16... d5 {[%clk 0:02:03.4]}
17. g5 {[%clk 0:01:28]} 17... hxg5 {[%clk 0:01:53.1]} 18. fxg5 {[%clk
0:01:26.9]} 18... dxe4 {[%clk 0:01:53.2]} 19. Nxe4 {[%clk 0:01:21.8]} 19... Nxe4
{[%clk 0:01:41.8]} 20. Bxe4 {[%clk 0:01:11.8]} 20... Qxc2+ {[%clk 0:01:35.9]}
21. Ka1 {[%clk 0:00:38.7]} 21... Bxe4 {[%clk 0:01:28.4]} 22. Qxe4 {[%clk
0:00:30.8]} 22... Qxf2 {[%clk 0:01:24.9]} 23. Nd4 {[%clk 0:00:21]} 23... Nc2+
{[%clk 0:01:06.8]} 24. Nxc2 {[%clk 0:00:16.1]} 24... Qxc2 {[%clk 0:01:07.7]} 25.
g6 {[%clk 0:00:12.3]} 25... Qxe4 {[%clk 0:01:04]} 26. gxf7+ {[%clk 0:00:11.9]}
26... Kxf7 {[%clk 0:01:04.2]} 27. Rxe4 {[%clk 0:00:12]} 27... Rhd8 {[%clk
0:01:03.5]} 0-1

[Event "*** SCC Grand Prix: Titled Tuesday Blitz"]
[Site "Chess.com"]
[Date "2020.07.07"]
[Round "2"]
[White "memer5334"]
[Black "ace_mar"]
[Result "0-1"]
[WhiteElo "2207"]
[BlackElo "2438"]
[TimeControl "180+1"]
[EndTime "10:17:20 PDT"]
[Termination "ace_mar won by checkmate"]

1. d4 {[%clk 0:03:00.9]} 1... Nf6 {[%clk 0:02:59.9]} 2. c4 {[%clk 0:02:59.7]}
2... e6 {[%clk 0:03:00.3]} 3. g3 {[%clk 0:02:59.4]} 3... d5 {[%clk 0:03:00.3]}
4. Nf3 {[%clk 0:02:57.4]} 4... dxc4 {[%clk 0:03:00.8]} 5. Qc2 {[%clk 0:02:55.2]}
5... a6 {[%clk 0:02:58.7]} 6. Qxc4 {[%clk 0:02:54.8]} 6... b5 {[%clk 0:02:58.7]}
7. Qc2 {[%clk 0:02:54.6]} 7... Bb7 {[%clk 0:02:59.1]} 8. Bg2 {[%clk 0:02:54.4]}
8... Nbd7 {[%clk 0:02:59.6]} 9. O-O {[%clk 0:02:49.7]} 9... c5 {[%clk
0:02:59.8]} 10. Rd1 {[%clk 0:02:46.6]} 10... Rc8 {[%clk 0:02:56.6]} 11. Qd2
{[%clk 0:02:37.1]} 11... cxd4 {[%clk 0:02:54.2]} 12. Nxd4 {[%clk 0:02:29.5]}
12... Bxg2 {[%clk 0:02:53.4]} 13. Kxg2 {[%clk 0:02:30.4]} 13... Bc5 {[%clk
0:02:52.7]} 14. b4 {[%clk 0:02:27]} 14... Be7 {[%clk 0:02:21.5]} 15. Nc3 {[%clk
0:02:20.4]} 15... Bxb4 {[%clk 0:02:19.9]} 16. Bb2 {[%clk 0:02:18.2]} 16... Ne4
{[%clk 0:02:19.4]} 17. Nxe4 {[%clk 0:01:47.5]} 17... Bxd2 {[%clk 0:02:17.6]} 18.
Nd6+ {[%clk 0:01:46.4]} 18... Kf8 {[%clk 0:02:08.9]} 19. Nxc8 {[%clk 0:01:46.5]}
19... Qxc8 {[%clk 0:02:09.8]} 20. Rxd2 {[%clk 0:01:46.6]} 20... Nb6 {[%clk
0:01:51.4]} 21. Nf3 {[%clk 0:01:29]} 21... f6 {[%clk 0:01:42]} 22. Ba3+ {[%clk
0:01:27.7]} 22... Kf7 {[%clk 0:01:41.6]} 23. Rad1 {[%clk 0:01:25.1]} 23... Qb7
{[%clk 0:01:24.2]} 24. Bc5 {[%clk 0:01:23.6]} 24... Rc8 {[%clk 0:01:12.4]} 25.
Be3 {[%clk 0:01:20.3]} 25... Rc7 {[%clk 0:01:08]} 26. Bd4 {[%clk 0:00:57.7]}
26... Nc4 {[%clk 0:01:04.4]} 27. Rd3 {[%clk 0:00:56.4]} 27... e5 {[%clk
0:01:03.6]} 28. Ba1 {[%clk 0:00:51.8]} 28... e4 {[%clk 0:01:02.5]} 29. Rd8
{[%clk 0:00:47.5]} 29... exf3+ {[%clk 0:01:00.3]} 30. exf3 {[%clk 0:00:48.4]}
30... b4 {[%clk 0:00:52.3]} 31. h4 {[%clk 0:00:47.8]} 31... h5 {[%clk 0:00:51]}
32. Rh8 {[%clk 0:00:47.7]} 32... Rd7 {[%clk 0:00:47.7]} 33. Re1 {[%clk
0:00:46.8]} 33... Rd3 {[%clk 0:00:45]} 34. Ree8 {[%clk 0:00:43.9]} 34... Qxf3+
{[%clk 0:00:42.8]} 35. Kh2 {[%clk 0:00:40.4]} 35... Qxf2+ {[%clk 0:00:42.7]} 36.
Kh3 {[%clk 0:00:40.9]} 36... Qxg3# {[%clk 0:00:42.5]} 0-1

[Event "*** SCC Grand Prix: Titled Tuesday Blitz"]
[Site "Chess.com"]
[Date "2020.07.07"]
[Round "2"]
[White "crazychessbr"]
[Black "goofypenguin96"]
[Result "0-1"]
[WhiteElo "2077"]
[BlackElo "2393"]
[TimeControl "180+1"]
[EndTime "10:17:20 PDT"]
[Termination "goofypenguin96 won on time"]

1. e4 {[%clk 0:02:59.2]} 1... g6 {[%clk 0:02:54.4]} 2. d3 {[%clk 0:02:56.6]}
2... Bg7 {[%clk 0:02:55.3]} 3. g3 {[%clk 0:02:57]} 3... e6 {[%clk 0:02:54]} 4.
Bg2 {[%clk 0:02:57.5]} 4... Ne7 {[%clk 0:02:54.6]} 5. f4 {[%clk 0:02:57.8]} 5...
O-O {[%clk 0:02:55.5]} 6. Nf3 {[%clk 0:02:58.2]} 6... f5 {[%clk 0:02:56]} 7. O-O
{[%clk 0:02:58.2]} 7... d5 {[%clk 0:02:56]} 8. Nc3 {[%clk 0:02:54.2]} 8... c5
{[%clk 0:02:53.8]} 9. Re1 {[%clk 0:02:45.3]} 9... Nbc6 {[%clk 0:02:47.3]} 10.
exd5 {[%clk 0:02:45]} 10... exd5 {[%clk 0:02:43.9]} 11. Ng5 {[%clk 0:02:43.5]}
11... Qd6 {[%clk 0:02:27.4]} 12. Nb5 {[%clk 0:02:34.6]} 12... Qd8 {[%clk
0:02:24.2]} 13. Ne6 {[%clk 0:02:18.8]} 13... Bxe6 {[%clk 0:02:21.6]} 14. Rxe6
{[%clk 0:02:19.6]} 14... a6 {[%clk 0:02:18.9]} 15. Nc3 {[%clk 0:01:55.6]} 15...
Qd7 {[%clk 0:02:18.6]} 16. Re1 {[%clk 0:01:43.7]} 16... Rae8 {[%clk 0:02:16.6]}
17. Na4 {[%clk 0:01:36.1]} 17... Qd6 {[%clk 0:02:13.8]} 18. Rb1 {[%clk 0:01:23]}
18... b5 {[%clk 0:02:11.6]} 19. Nc3 {[%clk 0:01:22.3]} 19... d4 {[%clk
0:02:11.4]} 20. Ne2 {[%clk 0:01:21.6]} 20... Nd5 {[%clk 0:02:10.2]} 21. Kh1
{[%clk 0:01:16.7]} 21... Ne3 {[%clk 0:02:04.2]} 22. Bxe3 {[%clk 0:01:15.9]}
22... Rxe3 {[%clk 0:02:05.1]} 23. Ng1 {[%clk 0:01:15.3]} 23... Rfe8 {[%clk
0:01:59.3]} 24. Qd2 {[%clk 0:01:14.4]} 24... Qe6 {[%clk 0:01:54.7]} 25. Nf3
{[%clk 0:01:07.3]} 25... Qxa2 {[%clk 0:01:51.2]} 26. h3 {[%clk 0:00:46.8]} 26...
Qe6 {[%clk 0:01:44.5]} 27. Kh2 {[%clk 0:00:43.5]} 27... Nb4 {[%clk 0:01:41.8]}
28. Ra1 {[%clk 0:00:20.5]} 28... Nd5 {[%clk 0:01:36.7]} 29. Rxe3 {[%clk
0:00:14.2]} 29... Nxe3 {[%clk 0:01:34.6]} 30. Re1 {[%clk 0:00:11.8]} 30... Qd7
{[%clk 0:01:27.4]} 31. c4 {[%clk 0:00:07.9]} 31... bxc4 {[%clk 0:01:24.9]} 32.
dxc4 {[%clk 0:00:07.3]} 32... Qa4 {[%clk 0:01:24.6]} 33. Ng5 {[%clk 0:00:03.7]}
33... Qxc4 {[%clk 0:01:20.7]} 0-1

[Event "*** SCC Grand Prix: Titled Tuesday Blitz"]
[Site "Chess.com"]
[Date "2020.07.07"]
[Round "2"]
[White "VladimirBelous"]
[Black "Azatic"]
[Result "1-0"]
[WhiteElo "2723"]
[BlackElo "2497"]
[TimeControl "180+1"]
[EndTime "10:17:21 PDT"]
[Termination "VladimirBelous won by resignation"]

1. c4 {[%clk 0:03:00.9]} 1... Nf6 {[%clk 0:03:00.1]} 2. Nf3 {[%clk 0:03:00.6]}
2... c5 {[%clk 0:02:59.9]} 3. g3 {[%clk 0:02:58.5]} 3... b6 {[%clk 0:03:00.3]}
4. Bg2 {[%clk 0:02:57.5]} 4... Bb7 {[%clk 0:03:01.2]} 5. O-O {[%clk 0:02:57.8]}
5... e6 {[%clk 0:03:01.2]} 6. Nc3 {[%clk 0:02:58.1]} 6... Be7 {[%clk 0:03:01.2]}
7. d4 {[%clk 0:02:56.5]} 7... cxd4 {[%clk 0:03:02.1]} 8. Qxd4 {[%clk 0:02:56.5]}
8... O-O {[%clk 0:03:01.7]} 9. Be3 {[%clk 0:02:54]} 9... Nc6 {[%clk 0:02:58.5]}
10. Qd3 {[%clk 0:02:37.7]} 10... d5 {[%clk 0:02:48.8]} 11. cxd5 {[%clk 0:02:35]}
11... Nb4 {[%clk 0:02:49]} 12. Qb5 {[%clk 0:02:27.1]} 12... Nbxd5 {[%clk
0:02:47.8]} 13. Nxd5 {[%clk 0:02:26.4]} 13... Bxd5 {[%clk 0:02:41.8]} 14. Rfd1
{[%clk 0:02:22.7]} 14... Qe8 {[%clk 0:02:19]} 15. Qxe8 {[%clk 0:01:56.8]} 15...
Rfxe8 {[%clk 0:02:19.9]} 16. Ne5 {[%clk 0:01:57]} 16... Rac8 {[%clk 0:02:17]}
17. Rac1 {[%clk 0:01:50.8]} 17... h6 {[%clk 0:01:57.3]} 18. Nc6 {[%clk
0:01:46.9]} 18... Rxc6 {[%clk 0:01:01.4]} 19. Rxc6 {[%clk 0:01:46.4]} 19... Bxc6
{[%clk 0:01:01.4]} 20. Bxc6 {[%clk 0:01:47.3]} 20... Rc8 {[%clk 0:01:01.9]} 21.
Bf3 {[%clk 0:01:34.2]} 21... Rc2 {[%clk 0:00:43.3]} 22. Bd4 {[%clk 0:01:33.7]}
22... Nd5 {[%clk 0:00:17.9]} 23. e4 {[%clk 0:01:21.4]} 23... Nb4 {[%clk
0:00:15.8]} 24. a3 {[%clk 0:01:02.9]} 24... Nc6 {[%clk 0:00:13.6]} 25. Bc3
{[%clk 0:01:02.4]} 25... Bf6 {[%clk 0:00:13.2]} 26. e5 {[%clk 0:00:58.9]} 26...
Nxe5 {[%clk 0:00:06.5]} 27. Bxe5 {[%clk 0:00:58.2]} 1-0

[Event "*** SCC Grand Prix: Titled Tuesday Blitz"]
[Site "Chess.com"]
[Date "2020.07.07"]
[Round "2"]
[White "stanyga"]
[Black "ItsCheckM8Mate"]
[Result "1-0"]
[WhiteElo "2635"]
[BlackElo "2257"]
[TimeControl "180+1"]
[EndTime "10:17:28 PDT"]
[Termination "stanyga won by resignation"]

1. d4 {[%clk 0:03:00.1]} 1... Nf6 {[%clk 0:02:59.5]} 2. c4 {[%clk 0:02:59.7]}
2... c5 {[%clk 0:02:59.7]} 3. d5 {[%clk 0:02:58.4]} 3... b5 {[%clk 0:02:59.9]}
4. cxb5 {[%clk 0:02:58.1]} 4... a6 {[%clk 0:03:00.2]} 5. bxa6 {[%clk 0:02:57.8]}
5... Bxa6 {[%clk 0:03:01.1]} 6. Nc3 {[%clk 0:02:57.3]} 6... g6 {[%clk
0:03:00.3]} 7. Nf3 {[%clk 0:02:56.6]} 7... Bg7 {[%clk 0:02:59.7]} 8. e4 {[%clk
0:02:56.7]} 8... Bxf1 {[%clk 0:02:59.3]} 9. Kxf1 {[%clk 0:02:56.7]} 9... d6
{[%clk 0:02:59.8]} 10. g3 {[%clk 0:02:56.9]} 10... O-O {[%clk 0:02:59.9]} 11.
Kg2 {[%clk 0:02:57.1]} 11... Nbd7 {[%clk 0:03:00.6]} 12. Qc2 {[%clk 0:02:52.1]}
12... Qb6 {[%clk 0:02:58.1]} 13. Rb1 {[%clk 0:02:50.5]} 13... Rfb8 {[%clk
0:02:53.8]} 14. b3 {[%clk 0:02:46.4]} 14... Ng4 {[%clk 0:02:37.5]} 15. h3 {[%clk
0:02:28.3]} 15... Nge5 {[%clk 0:02:35.6]} 16. Nxe5 {[%clk 0:02:28]} 16... Nxe5
{[%clk 0:02:35.7]} 17. Be3 {[%clk 0:02:20.1]} 17... Qa6 {[%clk 0:02:34.2]} 18.
a4 {[%clk 0:02:13.8]} 18... Nd3 {[%clk 0:02:31.3]} 19. Nb5 {[%clk 0:02:09.3]}
19... Nb4 {[%clk 0:02:25.7]} 20. Qd2 {[%clk 0:01:55.9]} 20... Qb7 {[%clk
0:02:22.9]} 21. h4 {[%clk 0:01:49.4]} 21... f5 {[%clk 0:02:20.9]} 22. f3 {[%clk
0:01:43.2]} 22... Rf8 {[%clk 0:02:06.1]} 23. h5 {[%clk 0:01:40.7]} 23... fxe4
{[%clk 0:01:38]} 24. fxe4 {[%clk 0:01:39.9]} 24... Qd7 {[%clk 0:01:34.6]} 25.
Qe2 {[%clk 0:01:30.5]} 25... e6 {[%clk 0:01:24.9]} 26. hxg6 {[%clk 0:01:30.2]}
26... hxg6 {[%clk 0:01:24]} 27. Qg4 {[%clk 0:01:29.8]} 27... Rae8 {[%clk
0:01:08.9]} 28. Qxg6 {[%clk 0:01:25]} 28... Rf6 {[%clk 0:01:00.2]} 29. Qh7+
{[%clk 0:01:19.5]} 29... Kf8 {[%clk 0:00:59.9]} 30. Rbf1 {[%clk 0:01:17.5]}
30... Re7 {[%clk 0:00:16.5]} 31. Rxf6+ {[%clk 0:01:10.7]} 31... Bxf6 {[%clk
0:00:17.4]} 32. Bh6+ {[%clk 0:01:10.9]} 32... Bg7 {[%clk 0:00:14.8]} 33. Rf1+
{[%clk 0:01:10.6]} 1-0

[Event "*** SCC Grand Prix: Titled Tuesday Blitz"]
[Site "Chess.com"]
[Date "2020.07.07"]
[Round "2"]
[White "timator"]
[Black "Karina_Ivanova"]
[Result "1-0"]
[WhiteElo "2629"]
[BlackElo "2221"]
[TimeControl "180+1"]
[EndTime "10:17:30 PDT"]
[Termination "timator won on time"]

1. d4 {[%clk 0:03:00.9]} 1... Nf6 {[%clk 0:02:59.6]} 2. Nf3 {[%clk 0:03:01.4]}
2... e6 {[%clk 0:02:59.1]} 3. c4 {[%clk 0:03:00.7]} 3... b6 {[%clk 0:02:58.3]}
4. g3 {[%clk 0:02:58.5]} 4... Bb7 {[%clk 0:02:57.2]} 5. Bg2 {[%clk 0:02:59]}
5... Be7 {[%clk 0:02:55.6]} 6. O-O {[%clk 0:02:58.6]} 6... O-O {[%clk
0:02:54.7]} 7. Re1 {[%clk 0:02:59]} 7... Na6 {[%clk 0:02:44.4]} 8. b3 {[%clk
0:02:56.8]} 8... d5 {[%clk 0:02:37.6]} 9. cxd5 {[%clk 0:02:56.5]} 9... exd5
{[%clk 0:02:30.2]} 10. Bb2 {[%clk 0:02:56]} 10... c5 {[%clk 0:02:29.7]} 11. Nc3
{[%clk 0:02:56.3]} 11... Rc8 {[%clk 0:02:17.9]} 12. Bh3 {[%clk 0:02:56.5]} 12...
Rb8 {[%clk 0:02:14.2]} 13. Rc1 {[%clk 0:02:55.9]} 13... Re8 {[%clk 0:02:07.1]}
14. e3 {[%clk 0:02:56.2]} 14... Ne4 {[%clk 0:01:55.4]} 15. Bg2 {[%clk
0:02:43.4]} 15... Bf6 {[%clk 0:01:48.7]} 16. a3 {[%clk 0:02:35.9]} 16... Qd7
{[%clk 0:01:30.4]} 17. h4 {[%clk 0:02:35.1]} 17... Rbd8 {[%clk 0:01:28.2]} 18.
Ne2 {[%clk 0:02:27.7]} 18... Nc7 {[%clk 0:01:17.3]} 19. Nf4 {[%clk 0:02:27.9]}
19... Ne6 {[%clk 0:01:12.6]} 20. Ne5 {[%clk 0:02:19]} 20... Bxe5 {[%clk
0:01:00]} 21. dxe5 {[%clk 0:02:19.9]} 21... Qe7 {[%clk 0:00:54.6]} 22. Qg4
{[%clk 0:02:12.1]} 22... Nd2 {[%clk 0:00:27.6]} 23. Rcd1 {[%clk 0:02:06.3]}
23... Nxb3 {[%clk 0:00:21.5]} 24. Nxd5 {[%clk 0:02:01.5]} 24... Bxd5 {[%clk
0:00:20]} 25. Bxd5 {[%clk 0:02:02.4]} 25... Na5 {[%clk 0:00:19.8]} 26. f4 {[%clk
0:02:00.8]} 26... Nc7 {[%clk 0:00:14.5]} 27. Ba2 {[%clk 0:01:59.9]} 27... c4
{[%clk 0:00:13.5]} 28. Rd6 {[%clk 0:01:49.7]} 28... Nb5 {[%clk 0:00:10.1]} 29.
Rdd1 {[%clk 0:01:35.6]} 29... c3 {[%clk 0:00:06.3]} 30. Bc1 {[%clk 0:01:35.6]}
30... Rxd1 {[%clk 0:00:04.7]} 31. Rxd1 {[%clk 0:01:35.1]} 31... Rd8 {[%clk
0:00:05.6]} 32. Rxd8+ {[%clk 0:01:31.5]} 32... Qxd8 {[%clk 0:00:06.5]} 33. e6
{[%clk 0:01:32.1]} 33... fxe6 {[%clk 0:00:04.4]} 34. Bxe6+ {[%clk 0:01:25.3]}
34... Kh8 {[%clk 0:00:04.3]} 35. Bd7 {[%clk 0:01:25.6]} 35... Nd6 {[%clk
0:00:02]} 36. Qe6 {[%clk 0:01:25.3]} 36... Nac4 {[%clk 0:00:02]} 37. e4 {[%clk
0:01:23.7]} 37... Qf8 {[%clk 0:00:01.9]} 38. e5 {[%clk 0:01:21.3]} 1-0

[Event "*** SCC Grand Prix: Titled Tuesday Blitz"]
[Site "Chess.com"]
[Date "2020.07.07"]
[Round "2"]
[White "chessfrendz"]
[Black "StephenDedalus83"]
[Result "0-1"]
[WhiteElo "2335"]
[BlackElo "2804"]
[TimeControl "180+1"]
[EndTime "10:17:35 PDT"]
[Termination "StephenDedalus83 won by checkmate"]

1. d4 {[%clk 0:03:00.9]} 1... Nf6 {[%clk 0:02:59.3]} 2. Nf3 {[%clk 0:03:00]}
2... g6 {[%clk 0:02:59.5]} 3. c4 {[%clk 0:02:58.8]} 3... Bg7 {[%clk 0:03:00.1]}
4. Nc3 {[%clk 0:02:58.7]} 4... O-O {[%clk 0:03:00.5]} 5. e4 {[%clk 0:02:57.9]}
5... d6 {[%clk 0:03:01.1]} 6. Be2 {[%clk 0:02:58.1]} 6... e5 {[%clk 0:03:01.4]}
7. O-O {[%clk 0:02:58.2]} 7... Nc6 {[%clk 0:03:01.4]} 8. d5 {[%clk 0:02:58.5]}
8... Ne7 {[%clk 0:03:01.9]} 9. Ne1 {[%clk 0:02:59]} 9... Ne8 {[%clk 0:03:01.1]}
10. Be3 {[%clk 0:02:59.3]} 10... f5 {[%clk 0:03:01]} 11. f3 {[%clk 0:02:59.9]}
11... f4 {[%clk 0:03:01.2]} 12. Bf2 {[%clk 0:03:00.5]} 12... h5 {[%clk
0:03:01.6]} 13. a4 {[%clk 0:02:59]} 13... g5 {[%clk 0:03:00.6]} 14. c5 {[%clk
0:02:58.4]} 14... Rf6 {[%clk 0:02:54.2]} 15. a5 {[%clk 0:02:56.9]} 15... Rg6
{[%clk 0:02:53.7]} 16. cxd6 {[%clk 0:02:53.4]} 16... Nxd6 {[%clk 0:02:52.6]} 17.
h3 {[%clk 0:02:38.6]} 17... Kh8 {[%clk 0:02:49.2]} 18. Ra3 {[%clk 0:02:31.8]}
18... Ng8 {[%clk 0:02:48.2]} 19. Nb5 {[%clk 0:02:04.5]} 19... g4 {[%clk
0:02:44.9]} 20. fxg4 {[%clk 0:01:59.3]} 20... hxg4 {[%clk 0:02:41.1]} 21. Nxd6
{[%clk 0:01:58.3]} 21... cxd6 {[%clk 0:02:37.4]} 22. hxg4 {[%clk 0:01:53]} 22...
Nh6 {[%clk 0:02:37.2]} 23. Rh3 {[%clk 0:01:33.7]} 23... Kg8 {[%clk 0:02:36.5]}
24. b4 {[%clk 0:01:27.6]} 24... Nxg4 {[%clk 0:02:35.3]} 25. Rh5 {[%clk
0:01:21.2]} 25... Nxf2 {[%clk 0:02:28.7]} 26. Rxf2 {[%clk 0:01:19.7]} 26... Bf6
{[%clk 0:02:28.5]} 27. Nf3 {[%clk 0:01:15.7]} 27... Bg4 {[%clk 0:02:26.8]} 28.
Rh1 {[%clk 0:01:14]} 28... Kg7 {[%clk 0:02:19.2]} 29. Nd2 {[%clk 0:01:05.3]}
29... Bxe2 {[%clk 0:02:13]} 30. Qxe2 {[%clk 0:01:04.7]} 30... Bh4 {[%clk
0:02:12.7]} 31. Rf1 {[%clk 0:00:59.7]} 31... Bg3 {[%clk 0:02:11.9]} 32. Qh5
{[%clk 0:00:55.3]} 32... Rc8 {[%clk 0:02:08]} 33. Qh7+ {[%clk 0:00:40.2]} 33...
Kf6 {[%clk 0:02:07.1]} 34. Nf3 {[%clk 0:00:36.5]} 34... Qc7 {[%clk 0:01:59.9]}
35. Qh3 {[%clk 0:00:33.3]} 35... Kg7 {[%clk 0:01:35]} 36. Qh7+ {[%clk
0:00:31.5]} 36... Kf6 {[%clk 0:01:34.9]} 37. Qh3 {[%clk 0:00:30.4]} 37... Rf8
{[%clk 0:01:28.9]} 38. Nh4 {[%clk 0:00:25.9]} 38... Bxh4 {[%clk 0:01:27.7]} 39.
Qxh4+ {[%clk 0:00:25.4]} 39... Kf7 {[%clk 0:01:27.8]} 40. Qh7+ {[%clk
0:00:22.3]} 40... Rg7 {[%clk 0:01:27.3]} 41. Qh5+ {[%clk 0:00:21.8]} 41... Ke7
{[%clk 0:01:26.7]} 42. Qh4+ {[%clk 0:00:19.9]} 42... Rf6 {[%clk 0:01:26]} 43.
Rh3 {[%clk 0:00:18.3]} 43... Qc2 {[%clk 0:01:23.9]} 44. Qh8 {[%clk 0:00:16.7]}
44... Qxg2# {[%clk 0:01:22]} 0-1